fUST/lending_fUST_20250524
["ID","MTS","AMOUNT","RATE_DAILY","PERIOD"]
[362190275,1748077838810,-430.0,0.00023013,3]
[362190276,1748077838820,-430.0,0.00023013,3]
[362190277,1748077838830,-563.48,0.00023013,3]
[362190278,1748077838840,-841.06,0.00023013,3]
[362190279,1748077838850,-430.0,0.00023013,3]
[362190280,1748077838860,-425.41730993,0.00023013,3]
[362190281,1748077838870,-430.0,0.00023013,3]
[362190282,1748077838881,-187.50850743,0.00023013,3]
[362190283,1748077838895,-242.49149257,0.00023013,3]
[362190284,1748077838904,-430.0,0.00023013,3]
[362190285,1748077838914,-430.0,0.00023013,3]
[362190286,1748077838923,-483.38,0.00023013,3]
[362190287,1748077838933,-430.0,0.00023013,3]
[362190288,1748077838943,-612.51,0.00023013,3]
[362190289,1748077838953,-960.91,0.00023013,3]
[362190290,1748077838963,-593.13,0.00023013,3]
[362190291,1748077838972,-430.0,0.00023013,2]
[362190292,1748077838981,-430.0,0.00023013,3]
[362190293,1748077838990,-219.07728811,0.00023287,3]
[362190294,1748077839003,-210.92271189,0.00023287,3]
[362190295,1748077839012,-430.0,0.00023287,3]
[362190296,1748077839022,-563.48,0.00023287,3]
[362190297,1748077839032,-841.06,0.00023287,3]
[362190298,1748077839041,-430.0,0.00023287,3]
[362190299,1748077839050,-430.0,0.00023287,3]
[362190300,1748077839060,-430.0,0.00023287,3]
[362190301,1748077839069,-430.0,0.00023287,3]
[362190302,1748077839080,-430.0,0.00023287,3]
[362190303,1748077839089,-483.38,0.00023287,3]
[362190304,1748077839098,-430.0,0.00023287,3]
[362190305,1748077839108,-612.51,0.00023287,3]
[362190306,1748077839117,-960.91,0.00023287,3]
[362190307,1748077839131,-593.13,0.00023287,3]
[362190308,1748077839143,-430.0,0.00023287,2]
[362190309,1748077839153,-385.4591698,0.00023287,3]
[362190310,1748077839162,-500.0,0.00023332,2]
[362190311,1748077839171,-500.0,0.00023338,2]
[362190312,1748077839181,-500.0,0.00023338,2]
[362190313,1748077839190,-600.0,0.00023338,2]
[362190314,1748077839199,-500.0,0.00023356,2]
[362190315,1748077839208,-1122.66813,0.0002352,2]
[362190316,1748077839218,-218.31957016,0.00023533,2]
[362190317,1748077839227,-430.0,0.00023561,3]
[362190318,1748077839236,-430.0,0.00023561,3]
[362190319,1748077839245,-563.48,0.00023561,3]
[362190320,1748077839254,-841.06,0.00023561,3]
[362190321,1748077839263,-430.0,0.00023561,3]
[362190322,1748077839273,-430.0,0.00023561,3]
[362190323,1748077839282,-430.0,0.00023561,3]
[362190324,1748077839292,-430.0,0.00023561,3]
[362190325,1748077839301,-430.0,0.00023561,3]
[362190327,1748077839311,-387.97468789,0.00023561,3]
[362190369,1748077840078,-95.40531211,0.00023561,3]
[362190370,1748077840089,-430.0,0.00023561,3]
[362190371,1748077840099,-46.91968789,0.00023561,3]
[362190610,1748077842973,-430.0,0.00021917,3]
[362190612,1748077842983,-430.0,0.00022191,3]
[362190615,1748077842992,-430.0,0.00022465,3]
[362190618,1748077843001,-430.0,0.00022739,3]
[362190620,1748077843011,-404.0,0.00022992,2]
[362190622,1748077843020,-430.0,0.00023013,3]
[362190624,1748077843030,-430.0,0.00023287,3]
[362190626,1748077843039,-565.59031211,0.00023561,3]
[362190628,1748077843048,-960.91,0.00023561,3]
[362190630,1748077843057,-593.13,0.00023561,3]
[362190632,1748077843067,-430.0,0.00023561,2]
[362190634,1748077843077,-215.0738,0.00023566,2]
[362190636,1748077843086,-500.0,0.00023618,2]
[362190639,1748077843096,-1000.0,0.0002362,2]
[362190641,1748077843105,-500.0,0.0002362,2]
[362190644,1748077843120,-192.37,0.00023826,2]
[362190646,1748077843135,-430.0,0.00023835,3]
[362190648,1748077843144,-563.48,0.00023835,3]
[362190650,1748077843154,-841.06,0.00023835,3]
[362190652,1748077843164,-430.0,0.00023835,3]
[362190654,1748077843174,-430.0,0.00023835,3]
[362190656,1748077843184,-430.0,0.00023835,3]
[362190658,1748077843194,-430.0,0.00023835,3]
[362190660,1748077843203,-430.0,0.00023835,3]
[362190662,1748077843213,-483.38,0.00023835,3]
[362190664,1748077843223,-430.0,0.00023835,3]
[362190666,1748077843233,-612.51,0.00023835,3]
[362190669,1748077843243,-960.91,0.00023835,3]
[362190671,1748077843253,-593.13,0.00023835,3]
[362190673,1748077843263,-537.31678536,0.00023835,2]
[362190675,1748077843273,-1000.0,0.00023885,2]
[362190677,1748077843283,-5000.00000001,0.00023907,7]
[362190679,1748077843292,-500.0,0.00023986,2]
[362190681,1748077843302,-193.4538228,0.00023991,2]
[362190683,1748077843311,-18994.98726322,0.00024,2]
[362190685,1748077843320,-2271.3642003,0.00024,2]
[362190687,1748077843330,-200.26583791,0.00024,2]
[362190689,1748077843340,-735.508794,0.00024,2]
[362190691,1748077843350,-735.508794,0.00024,2]
[362190693,1748077843362,-500.0,0.00024036,2]
[362190695,1748077843371,-455.6,0.00024085,15]
[362190697,1748077843382,-1719.97707272,0.00024108,3]
[362190699,1748077843391,-48134.14177055,0.00024109,2]
[362190701,1748077843400,-430.0,0.00024109,3]
[362190703,1748077843410,-563.48,0.00024109,3]
[362190705,1748077843419,-841.06,0.00024109,3]
[362190707,1748077843429,-430.0,0.00024109,3]
[362190709,1748077843440,-430.0,0.00024109,3]
[362190711,1748077843450,-430.0,0.00024109,3]
[362190713,1748077843459,-430.0,0.00024109,3]
[362190715,1748077843469,-430.0,0.00024109,3]
[362190717,1748077843479,-483.38,0.00024109,3]
[362190719,1748077843488,-430.0,0.00024109,3]
[362190721,1748077843498,-612.51,0.00024109,3]
[362190723,1748077843508,-960.91,0.00024109,3]
[362190725,1748077843518,-593.13,0.00024109,3]
[362190727,1748077843527,-218.31957016,0.00024116,2]
[362190729,1748077843538,-800.0,0.00024367,2]
[362190731,1748077843548,-500.0,0.00024371,2]
[362190733,1748077843558,-430.0,0.00024383,3]
[362190735,1748077843568,-563.48,0.00024383,3]
[362190737,1748077843578,-841.06,0.00024383,3]
[362190740,1748077843588,-430.0,0.00024383,3]
[362190742,1748077843599,-287.01279971,0.00024383,3]
[362190745,1748077843608,-430.0,0.00024383,3]
[362190748,1748077843618,-430.0,0.00024383,3]
[362190750,1748077843629,-430.0,0.00024383,3]
[362190752,1748077843638,-483.38,0.00024383,3]
[362190754,1748077843647,-430.0,0.00024383,3]
[362190756,1748077843657,-612.51,0.00024383,3]
[362190758,1748077843667,-960.91,0.00024383,3]
[362190760,1748077843676,-593.13,0.00024383,3]
[362190762,1748077843686,-500.0,0.00024406,2]
[362190764,1748077843696,-1500.0,0.00024433,2]
[362190766,1748077843705,-800.0,0.00024435,2]
[362190768,1748077843714,-800.0,0.00024451,2]
[362190770,1748077843724,-800.0,0.00024477,2]
[362190772,1748077843733,-500.0,0.000245,2]
[362190774,1748077843742,-800.0,0.00024508,2]
[362190776,1748077843752,-800.0,0.00024523,2]
[362190778,1748077843761,-800.0,0.00024538,2]
[362190780,1748077843771,-800.0,0.00024569,2]
[362190782,1748077843780,-800.0,0.00024591,2]
[362190784,1748077843790,-3000.0,0.000246,2]
[362190786,1748077843799,-800.0,0.00024601,2]
[362190788,1748077843809,-3000.0,0.0002461,2]
[362190790,1748077843819,-3000.0,0.0002462,2]
[362190792,1748077843828,-735.508794,0.00024626,2]
[362190794,1748077843837,-735.508794,0.00024626,2]
[362190796,1748077843847,-3000.0,0.0002463,2]
[362190798,1748077843856,-3000.0,0.0002464,2]
[362190800,1748077843865,-3000.0,0.0002465,2]
[362190802,1748077843875,-430.0,0.00024657,3]
[362190803,1748077843884,-563.48,0.00024657,3]
[362190805,1748077843893,-841.06,0.00024657,3]
[362190807,1748077843902,-430.0,0.00024657,3]
[362190809,1748077843912,-430.0,0.00024657,3]
[362190811,1748077843921,-430.0,0.00024657,3]
[362190813,1748077843930,-430.0,0.00024657,3]
[362190815,1748077843939,-483.38,0.00024657,3]
[362190817,1748077843949,-430.0,0.00024657,3]
[362190819,1748077843958,-155.0,0.00024657,2]
[362190821,1748077843967,-612.51,0.00024657,3]
[362190823,1748077843976,-4186.37,0.00024657,4]
[362190825,1748077843986,-960.91,0.00024657,3]
[362190827,1748077843995,-593.13,0.00024657,3]
[362190829,1748077844004,-3000.0,0.0002466,2]
[362190832,1748077844014,-3000.0,0.0002467,2]
[362190834,1748077844024,-500.0,0.00024678,2]
[362190835,1748077844033,-3000.0,0.0002468,2]
[362190837,1748077844042,-500.0,0.00024687,7]
[362190840,1748077844053,-3000.0,0.0002469,2]
[362190842,1748077844063,-156.8,0.000247,2]
[362190844,1748077844072,-3823.500543,0.000247,2]
[362190846,1748077844082,-218.31957016,0.000247,2]
[362190848,1748077844091,-800.0,0.00024708,2]
[362190850,1748077844101,-2000.0,0.00024716,2]
[362190851,1748077844110,-200.0,0.00024731,120]
[362190853,1748077844119,-500.0,0.00024773,2]
[362190856,1748077844131,-500.0,0.00024773,2]
[362190858,1748077844141,-200.0,0.00024773,120]
[362190860,1748077844150,-200.0,0.00024775,120]
[362190862,1748077844160,-230.85,0.00024779,2]
[362190864,1748077844170,-930215.39148063,0.000248,15]
[362190865,1748077844184,-764.106095,0.000248,7]
[362190866,1748077844194,-764.106095,0.000248,7]
[362190867,1748077844203,-764.106095,0.000248,7]
[362190868,1748077844213,-764.106095,0.000248,7]
[362190869,1748077844222,-735.508794,0.000248,2]
[362190870,1748077844231,-735.508794,0.000248,2]
[362190871,1748077844240,-70828.5065698,0.000248,2]
[362190872,1748077844250,-200.0,0.00024815,120]
[362190873,1748077844260,-168.51698682,0.00024873,2]
[362190874,1748077844270,-2200.0,0.00024899,2]
[362190875,1748077844279,-272.6,0.000249,2]
[362190876,1748077844288,-764.106095,0.000249,7]
[362190877,1748077844298,-764.106095,0.000249,7]
[362190878,1748077844307,-735.508794,0.000249,2]
[362190879,1748077844316,-735.508794,0.000249,2]
[362190881,1748077844325,-650010.211205,0.000249,2]
[362190883,1748077844334,-1000.0,0.00024912,2]
[362190885,1748077844344,-430.0,0.00024931,3]
[362190887,1748077844358,-563.48,0.00024931,3]
[362190888,1748077844368,-841.06,0.00024931,3]
[362190890,1748077844379,-430.0,0.00024931,3]
[362190892,1748077844389,-430.0,0.00024931,3]
[362190895,1748077844399,-430.0,0.00024931,3]
[362190896,1748077844408,-430.0,0.00024931,3]
[362190899,1748077844418,-483.38,0.00024931,3]
[362190901,1748077844428,-430.0,0.00024931,3]
[362190903,1748077844438,-612.51,0.00024931,3]
[362190904,1748077844448,-960.91,0.00024931,3]
[362190906,1748077844458,-593.13,0.00024931,3]
[362190908,1748077844467,-157.21774186,0.00024932,2]
[362190910,1748077844477,-223.0315306,0.00024935,2]
[362190913,1748077844487,-1013.3841365,0.00024981,2]
[362190915,1748077844498,-500.0,0.00024989,2]
[362190917,1748077844507,-5022584.13041318,0.00025,30]
[362190919,1748077844522,-18266.67842112,0.00025,30]
[362191059,1748077845873,-430.0,0.00023561,3]
[362191061,1748077845885,-430.0,0.00023835,3]
[362191063,1748077845894,-151.0,0.00024,2]
[362191065,1748077845904,-430.0,0.00024109,3]
[362191067,1748077845913,-430.0,0.00024383,3]
[362191068,1748077845922,-151.0,0.00024626,2]
[362191070,1748077845931,-430.0,0.00024657,3]
[362191072,1748077845942,-151.0,0.000248,2]
[362191074,1748077845953,-430.0,0.00024931,3]
[362191077,1748077845962,-2206.93872349,0.00025,30]
[362191079,1748077845974,-2533.11630208,0.00025,30]
[362191356,1748078010692,150.0,0.00011,2]
[362191360,1748078503992,14084.0,0.000246,30]
[362191361,1748078619654,-167.347726,0.00013699,2]
[362191362,1748078621686,-5.967279,0.00013699,2]
[362191395,1748078917586,300.54898291,0.000246,30]
[362191427,1748079031995,-2029.11637356,0.00019205,5]
[362191428,1748079032004,-173.0431991,0.00020938,2]
[362191429,1748079032014,-218.80954566,0.00021162,2]
[362191430,1748079032023,-364.6825761,0.00021259,2]
[362191432,1748079032033,-1200.0,0.00021816,2]
[362191433,1748079032043,-2109.16679857,0.00021817,2]
[362191434,1748079032052,-204.93220182,0.000219,6]
[362191435,1748079032062,-300.0,0.00021913,2]
[362191436,1748079032071,-300.0,0.00021914,2]
[362191437,1748079032080,-300.0,0.00021914,2]
[362191438,1748079032089,-300.0,0.00021914,2]
[362191439,1748079032098,-500.0,0.00021916,2]
[362191440,1748079032107,-349.37482066,0.00021916,2]
[362191441,1748079032116,-500.0,0.00021916,2]
[362191442,1748079032125,-500.0,0.00021916,2]
[362191443,1748079032135,-500.0,0.00021916,2]
[362191444,1748079032144,-500.0,0.00021916,2]
[362191445,1748079032153,-500.0,0.00021916,2]
[362191446,1748079032162,-374.09676707,0.00021916,2]
[362191447,1748079032171,-500.0,0.00021916,2]
[362191448,1748079032180,-500.0,0.00021916,2]
[362191449,1748079032190,-500.0,0.00021916,2]
[362191450,1748079032199,-500.0,0.00021916,2]
[362191451,1748079032208,-500.0,0.00021916,2]
[362191452,1748079032218,-500.0,0.00021916,2]
[362191453,1748079032227,-500.0,0.00021916,2]
[362191454,1748079032236,-500.0,0.00021916,2]
[362191455,1748079032246,-605.54163051,0.00021916,2]
[362191456,1748079032255,-500.0,0.00021916,2]
[362191457,1748079032264,-521.12584075,0.00021916,2]
[362191458,1748079032273,-435.61393758,0.00021916,2]
[362191459,1748079032283,-500.0,0.00021916,2]
[362191460,1748079032293,-544.58606064,0.00021916,2]
[362191461,1748079032302,-500.0,0.00021916,2]
[362191462,1748079032312,-500.0,0.00021916,2]
[362191463,1748079032321,-500.0,0.00021916,2]
[362191464,1748079032331,-169.0139823,0.00021916,2]
[362191465,1748079032341,-500.0,0.00021916,2]
[362191466,1748079032351,-500.0,0.00021916,2]
[362191467,1748079032360,-500.0,0.00021916,2]
[362191468,1748079032369,-500.0,0.00021916,2]
[362191469,1748079032379,-285.64502978,0.00021916,2]
[362191470,1748079032389,-500.0,0.00021916,2]
[362191471,1748079032398,-500.0,0.00021916,2]
[362191472,1748079032408,-524.44225705,0.00021916,2]
[362191473,1748079032418,-487.64869716,0.00021916,2]
[362191474,1748079032427,-500.0,0.00021916,2]
[362191475,1748079032436,-500.0,0.00021916,2]
[362191476,1748079032445,-500.0,0.00021916,2]
[362191477,1748079032455,-500.0,0.00021916,2]
[362191478,1748079032465,-500.0,0.00021916,2]
[362191479,1748079032474,-500.0,0.00021916,2]
[362191480,1748079032484,-500.0,0.00021916,2]
[362191481,1748079032493,-500.0,0.00021916,2]
[362191482,1748079032502,-500.0,0.00021916,2]
[362191483,1748079032511,-500.0,0.00021916,2]
[362191484,1748079032520,-500.0,0.00021917,3]
[362191485,1748079032529,-353.36600866,0.00021917,3]
[362191486,1748079032539,-453.94893715,0.00021917,3]
[362191487,1748079032548,-450.0,0.00021917,3]
[362191488,1748079032558,-430.0,0.00021917,3]
[362191489,1748079032567,-430.0,0.00021917,3]
[362191490,1748079032576,-450.0,0.00021917,3]
[362191491,1748079032585,-402.61772283,0.00021917,3]
[362191492,1748079032595,-430.0,0.00021917,3]
[362191493,1748079032604,-406.5015007,0.00021917,3]
[362191494,1748079032614,-402.48074581,0.00021917,3]
[362191495,1748079032623,-401.40508588,0.00021917,3]
[362191496,1748079032632,-430.0,0.00021917,3]
[362191497,1748079032642,-406.53251635,0.00021917,3]
[362191498,1748079032651,-401.47311142,0.00021917,3]
[362191499,1748079032660,-430.0,0.00021917,3]
[362191500,1748079032669,-430.0,0.00021917,3]
[362191501,1748079032679,-430.0,0.00021917,3]
[362191502,1748079032689,-301.02993744,0.00021917,3]
[362191503,1748079032699,-400.0,0.00021917,3]
[362191504,1748079032707,-450.0,0.00021917,3]
[362191505,1748079032717,-430.0,0.00021917,3]
[362191506,1748079032726,-450.0,0.00021917,3]
[362191507,1748079032735,-430.0,0.00021917,3]
[362191508,1748079032744,-404.10292031,0.00021917,3]
[362191509,1748079032754,-300.59174635,0.00021917,3]
[362191510,1748079032763,-419.1624014,0.00021917,3]
[362191511,1748079032775,-503.38170601,0.00021917,3]
[362191512,1748079032785,-430.0,0.00021917,3]
[362191513,1748079032794,-527.14812518,0.00021917,3]
[362191514,1748079032803,-400.0,0.00021917,3]
[362191515,1748079032814,-406.70279181,0.00021917,3]
[362191516,1748079032823,-432.44396354,0.00021917,3]
[362191517,1748079032832,-430.0,0.00021917,3]
[362191518,1748079032841,-465.12939596,0.00021917,3]
[362191519,1748079032852,-402.62695522,0.00021917,3]
[362191520,1748079032861,-430.0,0.00021917,3]
[362191521,1748079032870,-450.0,0.00021917,3]
[362191522,1748079032880,-414.55494655,0.00021917,3]
[362191523,1748079032890,-450.0,0.00021917,3]
[362191524,1748079032899,-400.0,0.00021917,3]
[362191525,1748079032908,-431.42841871,0.00021917,3]
[362191526,1748079032917,-431.20013826,0.00021917,3]
[362191527,1748079032927,-440.30752106,0.00021917,3]
[362191528,1748079032936,-430.0,0.00021917,3]
[362191529,1748079032946,-450.0,0.00021917,3]
[362191530,1748079032959,-432.03823321,0.00021917,3]
[362191531,1748079032969,-430.0,0.00021917,3]
[362191532,1748079032978,-430.0,0.00021917,3]
[362191533,1748079032988,-430.0,0.00021917,3]
[362191534,1748079032997,-419.60711294,0.00021917,3]
[362191535,1748079033006,-401.5275527,0.00021917,3]
[362191536,1748079033015,-430.0,0.00021917,3]
[362191537,1748079033025,-430.0,0.00021917,3]
[362191538,1748079033035,-436.95562546,0.00021917,3]
[362191539,1748079033044,-400.0,0.00021917,3]
[362191540,1748079033053,-430.0,0.00021917,3]
[362191541,1748079033062,-430.0,0.00021917,3]
[362191542,1748079033072,-500.01100002,0.00021917,3]
[362191543,1748079033081,-401.45251694,0.00021917,3]
[362191544,1748079033091,-450.0,0.00021917,3]
[362191545,1748079033101,-249.15449928,0.00021917,3]
[362191546,1748079033111,-463.40945818,0.00021917,3]
[362191547,1748079033120,-503.97802243,0.00021917,3]
[362191548,1748079033129,-450.0,0.00021917,3]
[362191549,1748079033138,-430.0,0.00021917,3]
[362191550,1748079033148,-400.0,0.00021917,3]
[362191551,1748079033157,-400.0,0.00021917,3]
[362191552,1748079033166,-430.0,0.00021917,3]
[362191553,1748079033176,-450.0,0.00021917,3]
[362191554,1748079033185,-400.0,0.00021917,3]
[362191555,1748079033195,-450.0,0.00021917,3]
[362191556,1748079033204,-450.0,0.00021917,3]
[362191557,1748079033214,-430.0,0.00021917,3]
[362191558,1748079033227,-400.0,0.00021917,3]
[362191559,1748079033243,-450.0,0.00021917,3]
[362191560,1748079033252,-430.0,0.00021917,3]
[362191561,1748079033262,-450.0,0.00021917,3]
[362191562,1748079033272,-400.0,0.00021917,3]
[362191563,1748079033282,-450.0,0.00021917,3]
[362191564,1748079033292,-430.0,0.00021917,3]
[362191565,1748079033301,-238.6573862,0.00021917,3]
[362191566,1748079033310,-430.0,0.00021917,3]
[362191567,1748079033320,-400.0,0.00021917,3]
[362191568,1748079033329,-450.0,0.00021917,3]
[362191569,1748079033339,-450.0,0.00021917,3]
[362191570,1748079033348,-450.0,0.00021917,3]
[362191571,1748079033358,-450.78938147,0.00021917,3]
[362191572,1748079033368,-450.0,0.00021917,3]
[362191573,1748079033377,-450.0,0.00021917,3]
[362191574,1748079033388,-450.0,0.00021917,3]
[362191575,1748079033398,-450.0,0.00021917,3]
[362191576,1748079033407,-400.0,0.00021917,3]
[362191577,1748079033417,-400.0,0.00021917,3]
[362191578,1748079033426,-450.0,0.00021917,3]
[362191579,1748079033437,-430.0,0.00021917,3]
[362191580,1748079033447,-430.0,0.00021917,3]
[362191581,1748079033456,-415.71153475,0.00021917,3]
[362191582,1748079033466,-430.0,0.00021917,3]
[362191583,1748079033476,-336.26646857,0.00021917,3]
[362191584,1748079033486,-400.0,0.00021917,3]
[362191585,1748079033496,-400.0,0.00021917,3]
[362191586,1748079033506,-450.0,0.00021917,3]
[362191587,1748079033515,-400.0,0.00021917,3]
[362191588,1748079033526,-430.0,0.00021917,3]
[362191589,1748079033536,-450.0,0.00021917,3]
[362191590,1748079033546,-400.0,0.00021917,3]
[362191591,1748079033557,-430.0,0.00021917,3]
[362191592,1748079033567,-430.0,0.00021917,3]
[362191593,1748079033578,-430.0,0.00021917,3]
[362191594,1748079033588,-400.0,0.00021917,3]
[362191595,1748079033599,-430.0,0.00021917,3]
[362191596,1748079033609,-450.0,0.00021917,3]
[362191597,1748079033619,-400.0,0.00021917,3]
[362191598,1748079033629,-400.0,0.00021917,3]
[362191599,1748079033638,-450.0,0.00021917,3]
[362191600,1748079033648,-430.0,0.00021917,3]
[362191601,1748079033658,-450.0,0.00021917,3]
[362191602,1748079033667,-450.0,0.00021917,3]
[362191603,1748079033678,-430.0,0.00021917,3]
[362191604,1748079033688,-430.0,0.00021917,3]
[362191605,1748079033698,-400.0,0.00021917,3]
[362191606,1748079033707,-400.0,0.00021917,3]
[362191607,1748079033717,-400.0,0.00021917,3]
[362191608,1748079033726,-400.0,0.00021917,3]
[362191609,1748079033735,-430.0,0.00021917,3]
[362191610,1748079033745,-450.0,0.00021917,3]
[362191611,1748079033754,-400.0,0.00021917,3]
[362191612,1748079033764,-430.0,0.00021917,3]
[362191613,1748079033776,-404.06598332,0.00021917,3]
[362191614,1748079033786,-430.0,0.00021917,3]
[362191615,1748079033796,-524.08060398,0.00021917,3]
[362191616,1748079033807,-400.0,0.00021917,3]
[362191617,1748079033817,-450.0,0.00021917,3]
[362191618,1748079033826,-403.6239542,0.00021917,3]
[362191619,1748079033836,-430.0,0.00021917,3]
[362191620,1748079033847,-430.0,0.00021917,3]
[362191621,1748079033859,-400.0,0.00021917,3]
[362191622,1748079033869,-414.05136376,0.00021917,3]
[362191623,1748079033880,-400.0,0.00021917,3]
[362191624,1748079033890,-400.0,0.00021917,3]
[362191625,1748079033900,-400.0,0.00021917,3]
[362191626,1748079033910,-430.0,0.00021917,3]
[362191627,1748079033919,-430.0,0.00021917,3]
[362191628,1748079033929,-400.0,0.00021917,3]
[362191629,1748079033940,-400.0,0.00021917,3]
[362191630,1748079033950,-400.0,0.00021917,3]
[362191631,1748079033959,-300.0,0.00021917,3]
[362191632,1748079033969,-400.0,0.00021917,3]
[362191633,1748079033979,-430.0,0.00021917,3]
[362191634,1748079033989,-430.0,0.00021917,3]
[362191635,1748079033999,-430.0,0.00021917,3]
[362191636,1748079034009,-430.0,0.00021917,3]
[362191637,1748079034019,-400.0,0.00021917,3]
[362191638,1748079034028,-430.0,0.00021917,3]
[362191639,1748079034038,-400.0,0.00021917,3]
[362191640,1748079034048,-450.0,0.00021917,3]
[362191641,1748079034058,-400.0,0.00021917,3]
[362191642,1748079034067,-430.0,0.00021917,3]
[362191643,1748079034077,-400.0,0.00021917,3]
[362191644,1748079034086,-450.0,0.00021917,3]
[362191645,1748079034096,-500.0,0.00021917,3]
[362191646,1748079034106,-450.0,0.00021917,3]
[362191647,1748079034116,-430.0,0.00021917,3]
[362191648,1748079034125,-430.0,0.00021917,3]
[362191649,1748079034134,-430.0,0.00021917,3]
[362191650,1748079034144,-430.0,0.00021917,3]
[362191651,1748079034153,-430.0,0.00021917,3]
[362191652,1748079034163,-400.0,0.00021917,3]
[362191653,1748079034172,-430.0,0.00021917,3]
[362191654,1748079034181,-430.0,0.00021917,2]
[362191655,1748079034193,-430.0,0.00021917,3]
[362191656,1748079034203,-430.0,0.00021917,3]
[362191657,1748079034212,-430.0,0.00021917,3]
[362191658,1748079034221,-350.0,0.00021917,3]
[362191659,1748079034230,-400.0,0.00021917,3]
[362191660,1748079034240,-430.0,0.00021917,3]
[362191661,1748079034250,-400.0,0.00021917,3]
[362191662,1748079034259,-430.0,0.00021917,3]
[362191663,1748079034268,-430.0,0.00021917,3]
[362191664,1748079034278,-430.0,0.00021917,3]
[362191665,1748079034287,-398.68629981,0.00021917,3]
[362191666,1748079034296,-350.0,0.00021917,3]
[362191667,1748079034306,-430.0,0.00021917,3]
[362191668,1748079034315,-400.0,0.00021917,3]
[362191669,1748079034325,-400.0,0.00021917,3]
[362191670,1748079034334,-400.81676059,0.00021917,3]
[362191671,1748079034344,-430.0,0.00021917,3]
[362191672,1748079034354,-430.0,0.00021917,3]
[362191673,1748079034363,-400.0,0.00021917,3]
[362191674,1748079034373,-400.0,0.00021917,3]
[362191675,1748079034483,-400.0,0.00021917,3]
[362191676,1748079034493,-450.0,0.00021917,3]
[362191677,1748079034503,-430.0,0.00021917,3]
[362191678,1748079034512,-400.0,0.00021917,3]
[362191679,1748079034522,-400.0,0.00021917,3]
[362191680,1748079034532,-430.0,0.00021917,3]
[362191681,1748079034541,-430.0,0.00021917,3]
[362191682,1748079034551,-400.31865747,0.00021917,3]
[362191683,1748079034561,-400.0,0.00021917,3]
[362191684,1748079034570,-450.0,0.00021917,3]
[362191685,1748079034581,-400.0,0.00021917,3]
[362191686,1748079034592,-430.0,0.00021917,3]
[362191687,1748079034601,-472.80336111,0.00021917,3]
[362191688,1748079034610,-400.0,0.00021917,3]
[362191689,1748079034620,-400.0,0.00021917,3]
[362191690,1748079034630,-482.03,0.00021917,3]
[362191691,1748079034640,-400.0,0.00021917,3]
[362191692,1748079034649,-400.0,0.00021917,3]
[362191693,1748079034658,-400.0,0.00021917,3]
[362191694,1748079034667,-400.0,0.00021917,3]
[362191695,1748079034676,-310.60094199,0.00021917,3]
[362191696,1748079034685,-400.0,0.00021917,3]
[362191697,1748079034696,-394.71179927,0.00021917,3]